[Event "*** Titled Tuesday 3|2 Blitz"]
[Site "Chess.com"]
[Date "2016.03.01"]
[Round "8"]
[White "MinhGTrAn"]
[Black "FairChess_on_YouTube"]
[Result "1/2-1/2"]
[WhiteElo "2662"]
[BlackElo "2732"]
[TimeControl "180+2"]
[EndTime "13:14:36 PST"]
[Termination "Game drawn by agreement"]

1. d4 {[%clk 0:03:01.9]} 1... d5 {[%clk 0:03:01]} 2. c4 {[%clk 0:03:02.8]} 2...
c6 {[%clk 0:03:02.5]} 3. Nc3 {[%clk 0:03:03.9]} 3... Nf6 {[%clk 0:03:03.5]} 4.
cxd5 {[%clk 0:03:05.4]} 4... cxd5 {[%clk 0:03:04.4]} 5. Bf4 {[%clk 0:03:07]}
5... Nc6 {[%clk 0:03:04.9]} 6. e3 {[%clk 0:03:08.6]} 6... a6 {[%clk 0:03:02.9]}
7. Bd3 {[%clk 0:03:09.5]} 7... Bg4 {[%clk 0:03:02.7]} 8. f3 {[%clk 0:03:11]}
8... Bh5 {[%clk 0:03:02.8]} 9. g4 {[%clk 0:03:12.6]} 9... Bg6 {[%clk 0:03:02.6]}
10. h4 {[%clk 0:03:14.2]} 10... e6 {[%clk 0:02:57.2]} 11. Nge2 {[%clk
0:03:14.5]} 11... Bd6 {[%clk 0:02:54.4]} 12. h5 {[%clk 0:03:09.1]} 12... Bxd3
{[%clk 0:02:54.4]} 13. Qxd3 {[%clk 0:03:11]} 13... h6 {[%clk 0:02:51.3]} 14. Kf2
{[%clk 0:02:58.6]} 14... Bxf4 {[%clk 0:02:34.6]} 15. Nxf4 {[%clk 0:03:00.5]}
15... Qd6 {[%clk 0:02:35.5]} 16. Rac1 {[%clk 0:02:54.8]} 16... Nd7 {[%clk
0:02:33.1]} 17. Nce2 {[%clk 0:02:39.4]} 17... Rc8 {[%clk 0:02:19.2]} 18. Rhg1
{[%clk 0:02:37.8]} 18... Qe7 {[%clk 0:02:11.9]} 19. Qb3 {[%clk 0:02:14.2]}
1/2-1/2

[Event "*** Titled Tuesday 3|2 Blitz"]
[Site "Chess.com"]
[Date "2016.03.01"]
[Round "8"]
[White "petrpalachev"]
[Black "Grootneus"]
[Result "1-0"]
[WhiteElo "2267"]
[BlackElo "2022"]
[TimeControl "180+2"]
[EndTime "13:15:23 PST"]
[Termination "petrpalachev won by resignation"]

1. d4 {[%clk 0:03:01.9]} 1... Nf6 {[%clk 0:02:58.3]} 2. c4 {[%clk 0:03:03.4]}
2... c5 {[%clk 0:02:59.4]} 3. d5 {[%clk 0:03:04.2]} 3... b5 {[%clk 0:03:01]} 4.
cxb5 {[%clk 0:03:06.1]} 4... a6 {[%clk 0:03:02.5]} 5. bxa6 {[%clk 0:03:06.6]}
5... g6 {[%clk 0:03:04.1]} 6. Nc3 {[%clk 0:03:08.5]} 6... Bxa6 {[%clk
0:03:05.5]} 7. e4 {[%clk 0:03:10.4]} 7... Bxf1 {[%clk 0:03:07.4]} 8. Kxf1 {[%clk
0:03:12.3]} 8... d6 {[%clk 0:03:08.7]} 9. Nf3 {[%clk 0:03:14.2]} 9... Bg7 {[%clk
0:03:10.3]} 10. g3 {[%clk 0:03:16.1]} 10... Nbd7 {[%clk 0:03:11.7]} 11. a4
{[%clk 0:03:17.6]} 11... O-O {[%clk 0:03:12.7]} 12. Kg2 {[%clk 0:03:18.8]} 12...
Qb6 {[%clk 0:03:14]} 13. Qc2 {[%clk 0:03:19.7]} 13... Rfb8 {[%clk 0:03:14.7]}
14. h3 {[%clk 0:03:19.2]} 14... Ne8 {[%clk 0:03:14]} 15. Re1 {[%clk 0:03:19.5]}
15... Nc7 {[%clk 0:03:14.8]} 16. Rb1 {[%clk 0:03:16.4]} 16... Qb3 {[%clk
0:03:06.8]} 17. Qxb3 {[%clk 0:03:16.3]} 17... Rxb3 {[%clk 0:03:08.7]} 18. Bd2
{[%clk 0:03:13]} 18... Nb6 {[%clk 0:03:08.1]} 19. e5 {[%clk 0:03:05]} 19... Nc4
{[%clk 0:03:02.9]} 20. exd6 {[%clk 0:03:04.6]} 20... exd6 {[%clk 0:03:03.9]} 21.
Bf4 {[%clk 0:03:05.2]} 21... Rxb2 {[%clk 0:02:31.5]} 22. Rxb2 {[%clk 0:03:02.3]}
22... Nxb2 {[%clk 0:02:33.4]} 23. Nb5 {[%clk 0:02:51.3]} 23... Nxb5 {[%clk
0:02:19.3]} 24. axb5 {[%clk 0:02:53.2]} 24... c4 {[%clk 0:02:06.5]} 25. Bxd6
{[%clk 0:02:53.4]} 25... c3 {[%clk 0:02:07.9]} 26. b6 {[%clk 0:02:53.8]} 26...
c2 {[%clk 0:01:43.5]} 27. b7 {[%clk 0:02:53.9]} 27... Rd8 {[%clk 0:01:44.6]} 28.
Rc1 {[%clk 0:02:52]} 28... Nc4 {[%clk 0:01:43.3]} 29. b8=Q {[%clk 0:02:49.8]}
29... Rxb8 {[%clk 0:01:43.5]} 30. Bxb8 {[%clk 0:02:51.7]} 30... Na3 {[%clk
0:01:43.9]} 31. Bd6 {[%clk 0:02:52]} 31... Bb2 {[%clk 0:01:44.9]} 32. Bxa3
{[%clk 0:02:52.6]} 1-0

[Event "*** Titled Tuesday 3|2 Blitz"]
[Site "Chess.com"]
[Date "2016.03.01"]
[Round "8"]
[White "Aygehovit1992"]
[Black "Alexander_Donchenko"]
[Result "0-1"]
[WhiteElo "2413"]
[BlackElo "2594"]
[TimeControl "180+2"]
[EndTime "13:15:34 PST"]
[Termination "Alexander_Donchenko won by resignation"]

1. d4 {[%clk 0:03:01.9]} 1... Nf6 {[%clk 0:02:59.5]} 2. c4 {[%clk 0:03:02]} 2...
e6 {[%clk 0:03:00.7]} 3. Nc3 {[%clk 0:03:02.3]} 3... Bb4 {[%clk 0:03:00.8]} 4.
Nf3 {[%clk 0:03:03.7]} 4... b6 {[%clk 0:03:01.7]} 5. Bg5 {[%clk 0:03:04.5]} 5...
Bb7 {[%clk 0:03:02.7]} 6. e3 {[%clk 0:03:05.9]} 6... h6 {[%clk 0:03:03.3]} 7.
Bxf6 {[%clk 0:03:05.3]} 7... Qxf6 {[%clk 0:03:04]} 8. Bd3 {[%clk 0:03:07]} 8...
d6 {[%clk 0:03:02.7]} 9. O-O {[%clk 0:03:07.8]} 9... Bxc3 {[%clk 0:03:03.9]} 10.
bxc3 {[%clk 0:03:08.5]} 10... Nd7 {[%clk 0:03:04.9]} 11. e4 {[%clk 0:03:09]}
11... e5 {[%clk 0:03:05.7]} 12. a4 {[%clk 0:03:10.2]} 12... a5 {[%clk
0:03:05.1]} 13. Rb1 {[%clk 0:03:11.3]} 13... Bc6 {[%clk 0:03:03.5]} 14. Bc2
{[%clk 0:03:07.9]} 14... O-O {[%clk 0:03:03.6]} 15. g3 {[%clk 0:03:02.3]} 15...
Rfe8 {[%clk 0:03:03.3]} 16. d5 {[%clk 0:02:59]} 16... Bb7 {[%clk 0:03:03.8]} 17.
Nh4 {[%clk 0:03:00.6]} 17... Nc5 {[%clk 0:03:01.6]} 18. Qd2 {[%clk 0:03:01.3]}
18... Bc8 {[%clk 0:02:58.7]} 19. Rbe1 {[%clk 0:03:02.4]} 19... Bh3 {[%clk
0:02:58.8]} 20. Ng2 {[%clk 0:02:57.9]} 20... Qf3 {[%clk 0:02:50.9]} 21. Nh4
{[%clk 0:02:58.8]} 21... Qh5 {[%clk 0:02:45.7]} 22. Ng2 {[%clk 0:02:56.9]} 22...
Bd7 {[%clk 0:02:43.4]} 23. f4 {[%clk 0:02:53.1]} 23... Bxa4 {[%clk 0:02:41.4]}
24. Bxa4 {[%clk 0:02:22.7]} 24... Nxa4 {[%clk 0:02:43.3]} 25. fxe5 {[%clk
0:02:21.5]} 25... Qxe5 {[%clk 0:02:41.3]} 26. Rf5 {[%clk 0:02:10.7]} 26... Qxc3
{[%clk 0:02:40.3]} 27. Qf2 {[%clk 0:02:12.3]} 27... Re7 {[%clk 0:02:39.3]} 28.
Nf4 {[%clk 0:02:12]} 28... Rae8 {[%clk 0:02:35.8]} 29. Nh5 {[%clk 0:02:09.2]}
29... Rxe4 {[%clk 0:02:26.3]} 30. Rxe4 {[%clk 0:02:09.2]} 30... Rxe4 {[%clk
0:02:28.2]} 31. Rxf7 {[%clk 0:02:03.7]} 31... Qe1+ {[%clk 0:02:28.7]} 32. Qxe1
{[%clk 0:02:03.8]} 32... Rxe1+ {[%clk 0:02:29.6]} 33. Kf2 {[%clk 0:02:05.4]}
33... Kxf7 {[%clk 0:02:28.8]} 0-1

[Event "*** Titled Tuesday 3|2 Blitz"]
[Site "Chess.com"]
[Date "2016.03.01"]
[Round "8"]
[White "Iwannabetheguy"]
[Black "KamilPlichta"]
[Result "0-1"]
[WhiteElo "2019"]
[BlackElo "2403"]
[TimeControl "180+2"]
[EndTime "13:15:35 PST"]
[Termination "KamilPlichta won by resignation"]

1. e4 {[%clk 0:03:01.9]} 1... g6 {[%clk 0:02:58.3]} 2. d4 {[%clk 0:03:01.7]}
2... Bg7 {[%clk 0:02:59.7]} 3. f4 {[%clk 0:03:02.8]} 3... c5 {[%clk 0:02:57.7]}
4. Nf3 {[%clk 0:02:59.2]} 4... cxd4 {[%clk 0:02:58.3]} 5. Nxd4 {[%clk
0:03:00.3]} 5... Nc6 {[%clk 0:02:59.7]} 6. Be3 {[%clk 0:02:51.8]} 6... Qb6
{[%clk 0:03:00.9]} 7. Nf5 {[%clk 0:02:17.5]} 7... Qb4+ {[%clk 0:02:50.1]} 8. c3
{[%clk 0:02:09.1]} 8... Qxb2 {[%clk 0:02:48.3]} 9. Nxg7+ {[%clk 0:02:08.4]} 9...
Kf8 {[%clk 0:02:48.9]} 10. Nd2 {[%clk 0:01:53.3]} 10... Qxc3 {[%clk 0:02:49.3]}
11. Bf2 {[%clk 0:01:26.5]} 11... Qxg7 {[%clk 0:02:50.1]} 12. Bc4 {[%clk
0:01:23.8]} 12... d6 {[%clk 0:02:47.8]} 13. O-O {[%clk 0:01:23.7]} 13... Nf6
{[%clk 0:02:43.1]} 14. Re1 {[%clk 0:01:22]} 14... Ng4 {[%clk 0:02:41.3]} 15. Bg3
{[%clk 0:01:18.2]} 15... Qd4+ {[%clk 0:02:41.3]} 16. Kf1 {[%clk 0:01:14.1]}
16... h5 {[%clk 0:02:30.7]} 17. Rc1 {[%clk 0:01:13.6]} 17... h4 {[%clk
0:02:31.6]} 18. h3 {[%clk 0:00:55.5]} 18... hxg3 {[%clk 0:02:31.5]} 0-1

[Event "*** Titled Tuesday 3|2 Blitz"]
[Site "Chess.com"]
[Date "2016.03.01"]
[Round "8"]
[White "AndrewMcStone"]
[Black "VerdeNotte"]
[Result "0-1"]
[WhiteElo "1986"]
[BlackElo "2531"]
[TimeControl "180+2"]
[EndTime "13:16:33 PST"]
[Termination "VerdeNotte won by resignation"]

1. d4 {[%clk 0:03:01.9]} 1... Nf6 {[%clk 0:02:32.4]} 2. c4 {[%clk 0:03:01.7]}
2... c5 {[%clk 0:02:33.7]} 3. d5 {[%clk 0:03:02.1]} 3... b5 {[%clk 0:02:35]} 4.
cxb5 {[%clk 0:03:01.6]} 4... a6 {[%clk 0:02:36.5]} 5. f3 {[%clk 0:03:03.1]} 5...
e6 {[%clk 0:02:36.4]} 6. e4 {[%clk 0:03:03.6]} 6... c4 {[%clk 0:02:38]} 7. Bxc4
{[%clk 0:03:00.3]} 7... axb5 {[%clk 0:02:39.4]} 8. Bxb5 {[%clk 0:02:58.5]} 8...
Bc5 {[%clk 0:02:40.2]} 9. Nc3 {[%clk 0:02:40.6]} 9... O-O {[%clk 0:02:39.7]} 10.
Nh3 {[%clk 0:02:24.7]} 10... exd5 {[%clk 0:02:36.3]} 11. Nxd5 {[%clk 0:02:04.1]}
11... Nxd5 {[%clk 0:02:36.7]} 12. Qxd5 {[%clk 0:02:04.8]} 12... Qa5+ {[%clk
0:02:37.8]} 13. Bd2 {[%clk 0:01:52.9]} 13... Qxb5 {[%clk 0:02:38.5]} 14. Qxa8
{[%clk 0:01:14.6]} 14... Ba6 {[%clk 0:02:38.8]} 15. O-O-O {[%clk 0:01:15.8]}
15... Nc6 {[%clk 0:02:34.7]} 16. Qxf8+ {[%clk 0:01:01.6]} 16... Kxf8 {[%clk
0:02:36.6]} 17. Nf4 {[%clk 0:00:29.5]} 17... Qa4 {[%clk 0:02:31.1]} 18. Kb1
{[%clk 0:00:25.9]} 18... Bc4 {[%clk 0:02:30.2]} 19. b3 {[%clk 0:00:12.6]} 19...
Bxb3 {[%clk 0:02:30.9]} 20. axb3 {[%clk 0:00:13.8]} 20... Qxb3+ {[%clk
0:02:31.9]} 0-1

[Event "*** Titled Tuesday 3|2 Blitz"]
[Site "Chess.com"]
[Date "2016.03.01"]
[Round "8"]
[White "AdrianaNikolova"]
[Black "PowerThinking2650"]
[Result "1-0"]
[WhiteElo "2146"]
[BlackElo "2138"]
[TimeControl "180+2"]
[EndTime "13:17:05 PST"]
[Termination "AdrianaNikolova won by resignation"]

1. e4 {[%clk 0:02:55.8]} 1... e5 {[%clk 0:02:59.6]} 2. Nf3 {[%clk 0:02:56.4]}
2... Nc6 {[%clk 0:03:00.5]} 3. Bb5 {[%clk 0:02:57.5]} 3... a6 {[%clk 0:03:01.6]}
4. Ba4 {[%clk 0:02:58.2]} 4... Nf6 {[%clk 0:03:00.4]} 5. O-O {[%clk 0:02:58.9]}
5... Be7 {[%clk 0:03:00.3]} 6. Re1 {[%clk 0:02:58.5]} 6... b5 {[%clk 0:03:00.9]}
7. Bb3 {[%clk 0:02:58.9]} 7... d6 {[%clk 0:02:59.9]} 8. h3 {[%clk 0:02:59.4]}
8... O-O {[%clk 0:03:00.3]} 9. c3 {[%clk 0:03:00.8]} 9... Bb7 {[%clk 0:03:00.4]}
10. Bc2 {[%clk 0:03:02.7]} 10... Re8 {[%clk 0:02:56.9]} 11. a4 {[%clk
0:03:03.8]} 11... Bf8 {[%clk 0:02:55.9]} 12. axb5 {[%clk 0:03:04]} 12... axb5
{[%clk 0:02:52.6]} 13. Rxa8 {[%clk 0:03:05.9]} 13... Bxa8 {[%clk 0:02:51.4]} 14.
Na3 {[%clk 0:03:07.8]} 14... b4 {[%clk 0:02:51.6]} 15. Nc4 {[%clk 0:03:05.8]}
15... Bb7 {[%clk 0:02:39.2]} 16. Ne3 {[%clk 0:03:01.5]} 16... g6 {[%clk
0:02:36.9]} 17. d3 {[%clk 0:02:54]} 17... Bg7 {[%clk 0:02:32.8]} 18. Ng4 {[%clk
0:02:50.1]} 18... Nxg4 {[%clk 0:02:31.2]} 19. hxg4 {[%clk 0:02:52]} 19... bxc3
{[%clk 0:02:32.2]} 20. bxc3 {[%clk 0:02:48.7]} 20... d5 {[%clk 0:02:16.7]} 21.
exd5 {[%clk 0:02:41]} 21... Qxd5 {[%clk 0:02:16.5]} 22. Bb3 {[%clk 0:02:42.5]}
22... Qd7 {[%clk 0:02:14.7]} 23. Ng5 {[%clk 0:02:34.7]} 23... Nd8 {[%clk
0:02:15.4]} 24. d4 {[%clk 0:02:27.9]} 24... Qc6 {[%clk 0:02:09.6]} 25. Qf3
{[%clk 0:02:17.7]} 25... Qxf3 {[%clk 0:01:31.7]} 26. Nxf3 {[%clk 0:02:19.6]}
26... Bxf3 {[%clk 0:01:17.5]} 27. gxf3 {[%clk 0:02:18.8]} 27... Kf8 {[%clk
0:01:18.4]} 28. d5 {[%clk 0:02:11.8]} 28... Nb7 {[%clk 0:01:11.7]} 29. c4 {[%clk
0:02:06.5]} 29... Ra8 {[%clk 0:01:11]} 30. Be3 {[%clk 0:02:00.3]} 30... Ra3
{[%clk 0:01:07.6]} 31. Rb1 {[%clk 0:01:56.4]} 31... Na5 {[%clk 0:01:04.9]} 32.
Bc5+ {[%clk 0:01:55.7]} 1-0

[Event "*** Titled Tuesday 3|2 Blitz"]
[Site "Chess.com"]
[Date "2016.03.01"]
[Round "8"]
[White "evgenyermolaev"]
[Black "Abdodi"]
[Result "1-0"]
[WhiteElo "2077"]
[BlackElo "1962"]
[TimeControl "180+2"]
[EndTime "13:17:23 PST"]
[Termination "evgenyermolaev won by resignation"]

1. e4 {[%clk 0:02:54.8]} 1... c6 {[%clk 0:03:00.5]} 2. Nf3 {[%clk 0:02:55.2]}
2... d5 {[%clk 0:03:01]} 3. Nc3 {[%clk 0:02:57.1]} 3... dxe4 {[%clk 0:03:01.4]}
4. Nxe4 {[%clk 0:02:58.2]} 4... Bg4 {[%clk 0:03:02.8]} 5. h3 {[%clk 0:02:28.4]}
5... Bxf3 {[%clk 0:03:03.4]} 6. Qxf3 {[%clk 0:02:26.7]} 6... Nd7 {[%clk
0:03:04.2]} 7. d4 {[%clk 0:02:24.6]} 7... Ngf6 {[%clk 0:03:04.5]} 8. Nxf6+
{[%clk 0:02:20]} 8... Nxf6 {[%clk 0:03:04.6]} 9. c3 {[%clk 0:02:21.6]} 9... e6
{[%clk 0:03:04.6]} 10. Bd3 {[%clk 0:02:22.6]} 10... h6 {[%clk 0:03:03.4]} 11.
O-O {[%clk 0:02:23.1]} 11... Bd6 {[%clk 0:03:03.6]} 12. Re1 {[%clk 0:02:17]}
12... Qd7 {[%clk 0:02:48]} 13. b4 {[%clk 0:02:11.7]} 13... O-O-O {[%clk
0:02:44.6]} 14. a4 {[%clk 0:02:02.7]} 14... Nd5 {[%clk 0:02:38.9]} 15. b5 {[%clk
0:02:01.6]} 15... Nxc3 {[%clk 0:02:22.2]} 16. Bd2 {[%clk 0:01:55.7]} 16... Nd5
{[%clk 0:02:19.1]} 17. bxc6 {[%clk 0:01:55.5]} 17... bxc6 {[%clk 0:02:18.6]} 18.
Ba6+ {[%clk 0:01:52.2]} 18... Kc7 {[%clk 0:02:15.5]} 19. Ba5+ {[%clk 0:01:33.3]}
19... Nb6 {[%clk 0:02:13.7]} 20. Rac1 {[%clk 0:01:33.9]} 20... Rb8 {[%clk
0:02:11.9]} 21. Bb5 {[%clk 0:01:33.1]} 21... Kd8 {[%clk 0:01:44.6]} 22. Rxc6
{[%clk 0:01:32.2]} 22... Qe7 {[%clk 0:01:34.8]} 23. Rec1 {[%clk 0:01:32.1]}
23... g5 {[%clk 0:00:58.6]} 24. Rxd6+ {[%clk 0:01:27.6]} 24... Qxd6 {[%clk
0:00:55.8]} 25. Qf6+ {[%clk 0:01:28.3]} 25... Qe7 {[%clk 0:00:47.5]} 26. Qxh8+
{[%clk 0:01:28.2]} 1-0

[Event "*** Titled Tuesday 3|2 Blitz"]
[Site "Chess.com"]
[Date "2016.03.01"]
[Round "8"]
[White "chessbia"]
[Black "Journey_to_GrandMaster_YT"]
[Result "0-1"]
[WhiteElo "2019"]
[BlackElo "2248"]
[TimeControl "180+2"]
[EndTime "13:17:50 PST"]
[Termination "Journey_to_GrandMaster_YT won by resignation"]

1. d4 {[%clk 0:03:01.9]} 1... Nf6 {[%clk 0:02:59.8]} 2. c4 {[%clk 0:03:02.9]}
2... e6 {[%clk 0:02:59.9]} 3. Nc3 {[%clk 0:03:03.3]} 3... d5 {[%clk 0:03:00.1]}
4. cxd5 {[%clk 0:03:02.3]} 4... exd5 {[%clk 0:03:01]} 5. Bg5 {[%clk 0:03:02.8]}
5... Bb4 {[%clk 0:03:01.8]} 6. e3 {[%clk 0:02:53.9]} 6... h6 {[%clk 0:03:02.2]}
7. Bh4 {[%clk 0:02:54.2]} 7... g5 {[%clk 0:03:03]} 8. Bg3 {[%clk 0:02:47]} 8...
Ne4 {[%clk 0:03:04.1]} 9. Ne2 {[%clk 0:02:43.3]} 9... h5 {[%clk 0:03:04.1]} 10.
f3 {[%clk 0:02:37.8]} 10... Nxg3 {[%clk 0:02:57.9]} 11. hxg3 {[%clk 0:02:38.3]}
11... c6 {[%clk 0:02:56.3]} 12. Kf2 {[%clk 0:02:36.7]} 12... Be6 {[%clk
0:02:49.8]} 13. e4 {[%clk 0:02:30.1]} 13... dxe4 {[%clk 0:02:49.4]} 14. Nxe4
{[%clk 0:02:30.1]} 14... Nd7 {[%clk 0:02:49.4]} 15. a3 {[%clk 0:02:30.9]} 15...
Be7 {[%clk 0:02:50]} 16. N2c3 {[%clk 0:02:28.6]} 16... f5 {[%clk 0:02:49.3]} 17.
Nd2 {[%clk 0:02:22.4]} 17... Nf6 {[%clk 0:02:49.8]} 18. Nc4 {[%clk 0:02:18.9]}
18... Qc7 {[%clk 0:02:41.5]} 19. Qe2 {[%clk 0:02:02]} 19... Bf7 {[%clk
0:02:36.5]} 20. Ne5 {[%clk 0:02:00.6]} 20... Kf8 {[%clk 0:02:27]} 21. Nxf7
{[%clk 0:01:59]} 21... Kxf7 {[%clk 0:02:28.5]} 22. Qd2 {[%clk 0:01:52.7]} 22...
Kg6 {[%clk 0:02:25.7]} 23. Re1 {[%clk 0:01:44.6]} 23... Rad8 {[%clk 0:02:25.3]}
24. Re6 {[%clk 0:01:43.7]} 24... Qd7 {[%clk 0:02:21.6]} 25. Bc4 {[%clk
0:01:28.7]} 25... Rhe8 {[%clk 0:02:08]} 26. d5 {[%clk 0:01:27.9]} 26... cxd5
{[%clk 0:02:06]} 27. Rxe7 {[%clk 0:01:05.5]} 27... Rxe7 {[%clk 0:02:02]} 28. Bd3
{[%clk 0:00:59.2]} 28... d4 {[%clk 0:01:55.9]} 29. Ne2 {[%clk 0:00:50.2]} 29...
Qe6 {[%clk 0:01:55.4]} 30. Qa5 {[%clk 0:00:36.8]} 30... b6 {[%clk 0:01:52.7]}
31. Qe1 {[%clk 0:00:23.6]} 31... Qe3+ {[%clk 0:01:51.9]} 32. Kf1 {[%clk
0:00:24.4]} 32... Qxd3 {[%clk 0:01:52.3]} 0-1

[Event "*** Titled Tuesday 3|2 Blitz"]
[Site "Chess.com"]
[Date "2016.03.01"]
[Round "8"]
[White "GeorgMeier"]
[Black "jcibarra"]
[Result "1-0"]
[WhiteElo "2744"]
[BlackElo "2493"]
[TimeControl "180+2"]
[EndTime "13:18:28 PST"]
[Termination "GeorgMeier won by resignation"]

1. Nf3 {[%clk 0:03:01.9]} 1... Nf6 {[%clk 0:03:00.6]} 2. g3 {[%clk 0:03:03.1]}
2... g6 {[%clk 0:03:01.6]} 3. Bg2 {[%clk 0:03:04.5]} 3... Bg7 {[%clk 0:03:03.3]}
4. O-O {[%clk 0:03:06.4]} 4... O-O {[%clk 0:03:05]} 5. d4 {[%clk 0:03:08.3]}
5... d6 {[%clk 0:03:06.2]} 6. b3 {[%clk 0:03:09.4]} 6... a5 {[%clk 0:03:04.1]}
7. a4 {[%clk 0:03:08.2]} 7... Nc6 {[%clk 0:03:04.3]} 8. Bb2 {[%clk 0:03:09.6]}
8... Bf5 {[%clk 0:03:04.9]} 9. Nbd2 {[%clk 0:03:09.3]} 9... Nb4 {[%clk
0:03:05.6]} 10. c3 {[%clk 0:03:06.6]} 10... Nc6 {[%clk 0:03:04.7]} 11. Nh4
{[%clk 0:02:44.3]} 11... Bd7 {[%clk 0:03:04.3]} 12. e4 {[%clk 0:02:38.7]} 12...
e5 {[%clk 0:03:03.4]} 13. Nhf3 {[%clk 0:02:34.3]} 13... Re8 {[%clk 0:03:01.9]}
14. Re1 {[%clk 0:02:30.9]} 14... exd4 {[%clk 0:02:55.7]} 15. Nxd4 {[%clk
0:02:31.5]} 15... Ne5 {[%clk 0:02:45.4]} 16. Qc2 {[%clk 0:02:31.4]} 16... h5
{[%clk 0:02:31.4]} 17. f4 {[%clk 0:02:19.1]} 17... Nc6 {[%clk 0:02:32.1]} 18. h3
{[%clk 0:02:12.2]} 18... Qc8 {[%clk 0:02:14]} 19. Kh2 {[%clk 0:02:12.9]} 19...
Bh6 {[%clk 0:01:50.6]} 20. N2f3 {[%clk 0:02:13.6]} 20... d5 {[%clk 0:01:43.4]}
21. exd5 {[%clk 0:01:51.5]} 21... Nxd4 {[%clk 0:01:27.6]} 22. Nxd4 {[%clk
0:01:38.4]} 22... h4 {[%clk 0:01:27.1]} 23. Bf3 {[%clk 0:00:51.1]} 23... Rxe1
{[%clk 0:01:18.1]} 24. Rxe1 {[%clk 0:00:51.2]} 24... Bxh3 {[%clk 0:01:20]} 25.
c4 {[%clk 0:00:40.7]} 25... Ng4+ {[%clk 0:01:07.3]} 26. Kg1 {[%clk 0:00:38.7]}
26... hxg3 {[%clk 0:01:04.1]} 27. Ne6 {[%clk 0:00:36.4]} 27... fxe6 {[%clk
0:00:51.1]} 28. Qxg6+ {[%clk 0:00:35.9]} 28... Kf8 {[%clk 0:00:46.4]} 29. Bxg4
{[%clk 0:00:36.4]} 1-0

[Event "*** Titled Tuesday 3|2 Blitz"]
[Site "Chess.com"]
[Date "2016.03.01"]
[Round "8"]
[White "dretch"]
[Black "Mornar1951"]
[Result "1/2-1/2"]
[WhiteElo "2545"]
[BlackElo "2601"]
[TimeControl "180+2"]
[EndTime "13:18:42 PST"]
[Termination "Game drawn by repetition"]

1. d4 {[%clk 0:03:01.9]} 1... Nf6 {[%clk 0:02:59.3]} 2. c4 {[%clk 0:03:02.9]}
2... e6 {[%clk 0:03:00.4]} 3. Nc3 {[%clk 0:03:03.9]} 3... Bb4 {[%clk 0:03:00.7]}
4. Qc2 {[%clk 0:03:05.2]} 4... O-O {[%clk 0:03:01]} 5. e4 {[%clk 0:03:06.4]}
5... d5 {[%clk 0:03:01]} 6. e5 {[%clk 0:03:07.7]} 6... Ne4 {[%clk 0:03:02.2]} 7.
Bd3 {[%clk 0:03:09.1]} 7... c5 {[%clk 0:03:01.7]} 8. Nf3 {[%clk 0:03:10.4]} 8...
cxd4 {[%clk 0:03:01.7]} 9. Nxd4 {[%clk 0:03:12.3]} 9... Nd7 {[%clk 0:03:00.6]}
10. Bf4 {[%clk 0:03:13.2]} 10... Qh4 {[%clk 0:02:56.6]} 11. g3 {[%clk
0:03:13.9]} 11... Qh5 {[%clk 0:02:57.6]} 12. O-O {[%clk 0:03:11.1]} 12... Bxc3
{[%clk 0:02:55.2]} 13. bxc3 {[%clk 0:03:11.1]} 13... Nxe5 {[%clk 0:02:32.6]} 14.
Be2 {[%clk 0:02:58.3]} 14... Ng4 {[%clk 0:02:23.9]} 15. Bxg4 {[%clk 0:02:57.9]}
15... Qxg4 {[%clk 0:02:22.4]} 16. f3 {[%clk 0:02:59.2]} 16... Qh5 {[%clk
0:02:17.9]} 17. fxe4 {[%clk 0:02:59.4]} 17... e5 {[%clk 0:02:19.3]} 18. Bxe5
{[%clk 0:02:53.3]} 18... Qxe5 {[%clk 0:02:17.1]} 19. cxd5 {[%clk 0:02:54.4]}
19... Bh3 {[%clk 0:02:12.6]} 20. Rf4 {[%clk 0:02:54.9]} 20... Rac8 {[%clk
0:02:12.6]} 21. Rc1 {[%clk 0:02:52.7]} 21... Rfe8 {[%clk 0:01:53.6]} 22. Qd3
{[%clk 0:02:50]} 22... g5 {[%clk 0:01:51.9]} 23. Rf2 {[%clk 0:02:32.7]} 23...
Qxe4 {[%clk 0:01:52.1]} 24. Qd2 {[%clk 0:02:24.8]} 24... Qxd5 {[%clk 0:01:45.3]}
25. c4 {[%clk 0:02:18.3]} 25... Qe5 {[%clk 0:01:17.6]} 26. Nf3 {[%clk
0:02:17.3]} 26... Qe3 {[%clk 0:01:12.2]} 27. Nxg5 {[%clk 0:02:14.9]} 27... Rxc4
{[%clk 0:01:02]} 28. Qxe3 {[%clk 0:01:59.6]} 28... Rxe3 {[%clk 0:01:01.6]} 29.
Rb1 {[%clk 0:02:01]} 29... Rb4 {[%clk 0:00:49.4]} 30. Rd1 {[%clk 0:01:44.2]}
30... Be6 {[%clk 0:00:47.5]} 31. Nxe6 {[%clk 0:01:40.3]} 31... Rxe6 {[%clk
0:00:48.2]} 32. Rd7 {[%clk 0:01:40.4]} 32... Ra6 {[%clk 0:00:23.7]} 33. Rdxf7
{[%clk 0:01:17.3]} 33... Rb1+ {[%clk 0:00:23.5]} 34. Kg2 {[%clk 0:01:11]} 34...
Rxa2 {[%clk 0:00:23.4]} 35. Rf8+ {[%clk 0:01:11.4]} 35... Kg7 {[%clk 0:00:24.8]}
36. Rf7+ {[%clk 0:01:12.2]} 36... Kg8 {[%clk 0:00:25.3]} 37. Rf8+ {[%clk
0:01:11.8]} 37... Kg7 {[%clk 0:00:26.5]} 38. Rf7+ {[%clk 0:01:12.4]} 38... Kg8
{[%clk 0:00:27.6]} 39. Rf8+ {[%clk 0:01:13.5]} 1/2-1/2